Cogmind - Beta 14 @@@ ROGUE MODE // 2025.01.18 @ 21:17:25 Player: Mutetourette Result: Smashed by cave-in Performance ------------- Evolutions (0) 0 Regions Visited (2) 400 Robots Destroyed (24) 120 Value Destroyed (391) 391 Prototype IDs (0) 0 Alien Tech Used (0) 0 Bonus (0) 0 TOTAL SCORE: 911 Bonus ------- None Cogmind --------- Core Integrity 0/250 Matter 285/300 Energy 100/100 System Corruption 2% Temperature Cool (0) Movement Treading (160) Location -10/Mines Parts ------- > --- POWER (1) -------- (None) > --- PROPULSION (2) --- Improved Treads Improved Treads > --- UTILITY (2) ------ Large Storage Unit Signal Interpreter > --- WEAPON (2) ------- Light Assault Rifle Autogun > --- INVENTORY (15) --- Light Ion Engine Light Treads Light Treads Aluminum Leg Heat Sink Improved Heat Sink EM Pulse Gun Particle Gun Light Assault Rifle Light Assault Rifle Light Assault Rifle Light Cannon Light Cannon Mining Laser Peak State ------------ > --- POWER ------------ Light Ion Engine > --- PROPULSION ------- Improved Treads Improved Treads > --- UTILITY ---------- Large Storage Unit Seismic Detector > --- WEAPON ----------- Autogun Autogun > --- INVENTORY -------- Light Ion Engine Light Ion Engine Light Treads Light Treads Aluminum Leg EM Pulse Gun Autogun Light Cannon Mining Laser [Rating: 12] Favorites ----------- Power Light Ion Engine Engine Light Ion Engine Propulsion Improved Treads Treads Improved Treads Leg Aluminum Leg Utility Large Storage Unit Device Seismic Detector Storage Large Storage Unit Processor Signal Interpreter Weapon Autogun Energy Gun Small Laser Ballistic Gun Autogun Build | -11 -10 -10 ------- Run | Yrd Mat Min Slots Evolved . | . . . Power . | . . . Propulsion . | . . . Utility . | . . . Weapon . | . . . Parts Attached 19 | 7 10 2 Power 4 | 1 2 1 Engine 4 | 1 2 1 Core . | . . . Reactor . | . . . Propulsion 5 | 2 3 . Treads 3 | . 3 . Leg 2 | 2 . . Wheel . | . . . Hover . | . . . Flight . | . . . Utility 4 | 2 2 . Device 1 | 1 . . Storage 2 | 1 1 . Processor 1 | . 1 . Hackware . | . . . Protection . | . . . Artifact . | . . . Weapon 6 | 2 3 1 Energy Gun 1 | 1 . . Energy Cannon . | . . . Ballistic Gun 5 | 1 3 1 Ballistic Cannon . | . . . Launcher . | . . . Special Weapon . | . . . Impact Weapon . | . . . Slashing Weapon . | . . . Piercing Weapon . | . . . Special Melee Weapon . | . . . Unidentified Prototypes . | . . . Parts Lost 4 | . 1 3 Power 2 | . . 2 Propulsion . | . . . Utility 1 | . 1 . Weapon 1 | . . 1 Highest Loss Streak 2 | . 1 2 To Critical Strikes . | . . . Average Slot Usage (%) 95 | . 93 100 Engine 13 | . 13 14 Treads 23 | . 22 28 Leg 3 | . 5 . Device 5 | . 6 . Storage 14 | . 14 14 Processor 5 | . 3 14 Energy Gun 1 | . 2 . Ballistic Gun 24 | . 23 28 Peak Build Rating 12 | 7 12 12 Average Rating 9 | 4 10 11 On Entrance 6 | . 7 12 Naked Turns . | . . . Heaviest Build 30 | 11 30 29 Greatest Support 46 | 20 46 46 Greatest Overweight (x) 1 | 1 . . Average Overweight (x) . | . . . Largest Inventory Capacity 15 | 8 15 15 Average Capacity 12 | 7 12 15 Most Carried 15 | 7 14 15 Average Carried 10 | 4 9 14 Final Capacity 15 | 8 15 15 Final Carried 14 | 5 12 14 Class Distribution -------------------- 100% | Mutant Dominant Class ---------------- Mutant | -10/Materials Mutant | -10/Mines Resources | -11 -10 -10 ----------- Run | Yrd Mat Min Matter Collected 732 | 237 309 186 Remotely . | . . . Salvage Created 662 | 24 363 275 Parts 44 | 4 23 17 Haulers Intercepted 1 | . 1 . Recyclers Shooed 4 | 1 1 2 Parts Field Recycled . | . . . Retrieved Matter . | . . . Parts Self-Destructed . | . . . Prevented . | . . . Kills | -11 -10 -10 ------- Run | Yrd Mat Min Combat Hostiles Destroyed 16 | . 11 5 Guns 16 | . 11 5 Classes Destroyed 7 | 1 4 2 Worker 1 | . . 1 Tunneler 2 | 2 . . Hauler 1 | . 1 . Recycler 2 | . . 2 Watcher 2 | . 2 . Swarmer 10 | . 7 3 Grunt 6 | . 4 2 Best Kill Streak 5 | 1 4 5 Combat Bots Only 4 | . 4 3 Max Kills in Single Turn 2 | 1 1 2 Gunslinging 1 | . . 1 Exploded . | . . . Melee . | . . . Uniques/NPCs Destroyed . | . . . Combat | -11 -10 -10 -------- Run | Yrd Mat Min Hostile Shots Fired 80 | . 59 21 Missed 22 | . 19 3 Damage Taken 927 | . 433 494 Core 262 | . 103 159 Absorbed by Shields . | . . . Core Remaining (%) 100 | 100 . . Volleys Fired 56 | 6 35 15 Largest 2 | 2 2 2 Hottest 60 | 60 46 46 Shots Fired 112 | 12 70 30 Gun 112 | 12 70 30 Cannon . | . . . Launcher . | . . . Special . | . . . Kinetic 106 | 6 70 30 Thermal 6 | 6 . . Explosive . | . . . Electromagnetic . | . . . Robot Hit Streak 6 | 3 6 4 Robot Miss Streak 3 | 1 3 3 Penetration Max . | . . . Secondary Targets 5 | . 3 2 Max Gunslinging Chain 1 | . 1 1 Shots Hit Robots 61 | 8 38 15 Core Hits 34 | 4 19 11 Critical Kills 1 | . 1 . Critical Parts Destroyed 1 | . 1 . Critical Strikes 2 | . 2 . Destroy 2 | . 2 . Melee Attacks . | . . . Impact . | . . . Slashing . | . . . Piercing . | . . . Sneak Attacks . | . . . Combat Hostiles . | . . . Follow-up Attacks . | . . . Damage Inflicted 928 | 75 621 232 Guns 925 | 75 620 230 Cannons . | . . . Explosions . | . . . Melee . | . . . Ramming 3 | . 1 2 Kinetic 882 | 32 620 230 Thermal 43 | 43 . . Explosive . | . . . Electromagnetic . | . . . Impact . | . . . Slashing . | . . . Piercing . | . . . Highest Corruption . | . . . Average Corruption . | . . . Corruption Purged . | . . . Corruption Blocked . | . . . Overload Shots . | . . . Overflow Damage . | . . . Projectiles . | . . . Explosions . | . . . Melee . | . . . Knockbacks . | . . . Impact . | . . . Kinetic . | . . . Secondary . | . . . Self-Inflicted Damage . | . . . Shots . | . . . Rammed 2 | . 2 . Targets Rammed 3 | . 2 1 Kicked . | . . . Crushed 1 | . . 1 Highest Temperature 133 | 40 133 13 Average Temperature 22 | 17 29 4 Received Heat Transfer 251 | . 201 50 Siege Activations . | . . . Robots Corrupted . | . . . Combat Hostiles . | . . . Parts Fried . | . . . Impact Corruptions . | . . . Robots Melted . | . . . Combat Hostiles . | . . . Parts Melted . | . . . Heat Transferred 100 | 100 . . Parts Sabotaged . | . . . Parts Stolen . | . . . Parts Stripped . | . . . Power Chain Reactions . | . . . Alert | -11 -10 -10 ------- Run | Yrd Mat Min Peak Influence 206 | 10 177 206 Initial 66 | . 6 66 Average 100 | 3 91 171 Maximum Alert Level 1 | . . 1 Low Security (%) 99 | 100 100 95 Level 1 . | . . 4 Level 2 . | . . . Level 3 . | . . . Level 4 . | . . . Level 5 . | . . . High Security . | . . . Max Security . | . . . Squads Dispatched 1 | . 1 . Investigation . | . . . Extermination . | . . . Reinforcement 1 | . 1 . Assault . | . . . Garrison . | . . . Intercept . | . . . Searches Triggered . | . . . Construction Impeded . | . . . Haulers Reinforced . | . . . Active Scanning Responses . | . . . Cargo Convoy Interrupts . | . . . Stealth | -11 -10 -10 --------- Run | Yrd Mat Min Distress Signals 3 | . 3 . Communications Jammed . | . . . Distress Signals . | . . . Times Spotted 28 | . 18 10 Peak Tracking Total 6 | . 4 6 Tactical Retreats 3 | . 2 1 Traps | -11 -10 -10 ------- Run | Yrd Mat Min Traps Triggered 1 | . 1 . Indirectly . | . . . Trap Hack Attempts . | . . . Triggered . | . . . Disarmed . | . . . Reprogrammed . | . . . Reused . | . . . Traps Extracted . | . . . Installed . | . . . Triggered . | . . . Machines | -11 -10 -10 ---------- Run | Yrd Mat Min Machines Disabled . | . . . Max in Single Turn . | . . . Machines Repaired . | . . . Machines Dismantled . | . . . Machines Sabotaged . | . . . Overloaded Fab Kills . | . . . Hacking | -11 -10 -10 --------- Run | Yrd Mat Min Machines Accessed 2 | . 2 . Terminals 2 | . 2 . Fabricators . | . . . Repair Stations . | . . . Recycling Units . | . . . Scanalyzers . | . . . Garrison Access . | . . . Total Hacks 7 | . 7 . Successful 2 | . 2 . Failed 5 | . 5 . Catastrophic . | . . . Database Lockouts . | . . . Manual 6 | . 6 . Terminals 7 | . 7 . Fabricators . | . . . Repair Stations . | . . . Recycling Units . | . . . Scanalyzers . | . . . Garrison Access . | . . . Terminal Hacks . | . . . Fabricator Hacks . | . . . Repair Station Hacks . | . . . Recycling Unit Hacks . | . . . Scanalyzer . | . . . Garrison Access Hacks . | . . . Unauthorized Hacks 2 | . 2 . Terminals 2 | . 2 . Assimilate 1 | . 1 . Botnet 1 | . 1 . Fabricators . | . . . Repair Stations . | . . . Recycling Units . | . . . Scanalyzers . | . . . Garrison Access . | . . . Data Cores Recovered . | . . . Used . | . . . Hacking Detections 2 | . 2 . Full Trace Events . | . . . Feedback Events . | . . . Feedback Blocked . | . . . Robot Schematics Acquired . | . . . Robots Built . | . . . Authchips . | . . . Time . | . . . Total Robot Build Rating . | . . . Part Schematics Acquired . | . . . Parts Built . | . . . Authchips . | . . . Time . | . . . Total Part Build Rating . | . . . Parts Repaired . | . . . Time . | . . . Parts Recycled . | . . . Recycled Matter . | . . . Retrieved Matter . | . . . Retrieved Components . | . . . Parts Scanalyzed . | . . . Part Schematics Acquired . | . . . Parts Damaged . | . . . Bothacking | -11 -10 -10 ------------ Run | Yrd Mat Min Used RIF Installer . | . . . Robots Hacked . | . . . Non-combat . | . . . Combat . | . . . Robot Hacks Applied . | . . . Relay Couplers Released . | . . . Fabnet Peak Effective % . | . . . Robots Rewired . | . . . Allies Hacked . | . . . Hacks Repelled . | . . . Allies | -11 -10 -10 -------- Run | Yrd Mat Min Total Allies 1 | . 1 . Largest Group 1 | . 1 . Highest-Rated Group 10 | . 10 . Highest-Rated Ally 10 | . 10 . Total Orders . | . . . Ally Attacks . | . . . Total Damage . | . . . Kills . | . . . Allies Corrupted . | . . . Allies Melted . | . . . Intel | -11 -10 -10 ------- Run | Yrd Mat Min Robot Analysis Total . | . . . Derelict Logs Recovered 1 | . . 1 Drone Launches . | . . . Drone Recoveries . | . . . Exploration | -11 -10 -10 ------------- Run | Yrd Mat Min Turns Passed 967 | 97 662 208 Spaces Moved 487 | 54 336 97 Core 17 | 17 . . Treads 345 | . 248 97 Legs 125 | 37 88 . Wheels . | . . . Hover . | . . . Flight . | . . . Fastest Speed 50 | 50 120 160 Average Speed 147 | 112 149 160 Slowest Speed 160 | 120 160 160 Overloaded Moves . | . . . Propulsion Burnouts . | . . . Robots Hopped . | . . . Cave-ins Triggered 1 | . . 1 Exploration Rate (%) 24 | 5 49 18 Regions Visited 2 Branch Regions 1 Pre-discovered Areas 1 | . . 1 Known Exits Taken 1 | . 1 . Unknown Exits Taken 1 | 1 . . Scrap Searched . | . . . Spaces Dug . | . . . Terrain Destroyed . | . . . Melee . | . . . Projectile . | . . . AOE . | . . . Terrain Rammed . | . . . Walls Destroyed . | . . . Machines Disabled . | . . . Actions | -11 -10 -10 --------- Run | Yrd Mat Min Total 644 | 79 439 126 Wait 44 | 1 39 4 Move 485 | 53 335 97 Hop . | . . . Pick Up 29 | 12 13 4 Fast Attach 2 | . 2 . Attach 14 | 7 5 2 Detach . | . . . Swap 3 | . 3 . Drop 5 | . 5 . Fire 56 | 6 35 15 Melee . | . . . Ram . | . . . Kick . | . . . Crush 3 | . 2 1 Escape Stasis . | . . . Rewire 3 | . . 3 Trap . | . . . Miscellaneous . | . . . Route ------- -11/Scrapyard -10/Materials (discovered 2 exits: *Mat / *Min) -10/Mines (discovered 2 exits: *Mat x2) History --------- Turn | Location | Event 10 | -11/Scrapyard | Discovered new exit (range 15) 98 | -11/Scrapyard | Entered Materials 319 | -10/Materials | Build established: Mutant 354 | -10/Materials | Discovered new exit (range 4) 534 | -10/Materials | Discovered new exit (range 11) 618 | -10/Materials | Identified exit to Mines 760 | -10/Materials | Entered Mines 812 | -10/Mines | Learned location of Zion (-7) 820 | -10/Mines | Discovered new exit (range 10) 864 | -10/Mines | Identified exit to Materials 907 | -10/Mines | Discovered exit to Materials (range 4) 929 | -10/Mines | Assembled infested the area 934 | -10/Mines | Assisted by a Guerilla fighting off Assembled 966 | -10/Mines | Core integrity fell below 50% 969 | -10/Mines | Crushed by falling debris 969 | -10/Mines | Smashed by cave-in Last Messages --------------- 00919_ A-02 Transporter is broken beyond repair. 00929_ ALERT: Infestation in the mines, dispatching Demolisher response squad. 00930_ Attempting to rewire T-07 Excavator. 00930_ T-07 Excavator is broken beyond repair. 00934_ A derelict emerges from the shadows: "You need to get out of here! I've been tracking a group of Assembled to figure out where they're coming from, and they're closing on this area, come on!" 00937_ 7Z-L69(h) exits level. 00961_ Lgt. Ion Engine destroyed. 00966_ C-30 ARC bursts open, deploying its payload. 00966_ D-53 Grenadier unfolds itself. 00966_ as-11993 destroyed. 00969_ The unstable cave ceiling collapses. 00969_ Crushed by falling debris. 00969_ Lgt. Ion Engine destroyed. 00969_ System corrupted by crushing effect (+2). Map ----- +----------------------------------------------------+ | ?????????????????????????????????????????????? | | ?????????????????????????????????????????????? | | ?????????????????????????????????????????????? | | ?????????????????????????????????????????????? | | ?????????????????????????????????????????????? | | ?????????????????????????????????????????????? | | ?????????????????????????????????????????????? | | ?????????????????????????????????????????????? | | ?????????????????????????????????????????????? | | ?????????????????????????#???????????????????? | | ????????????????????????? ##?????????????????? | | ????????????????????????? #?????????????????? | | ????????????????????????# #?????????????????? | | ????????????????????????# #?????????????????? | | ????????????????????????# #?????????????????? | | ????????????????????????# #?????????????????? | | ????????????????????????# #?????????????????? | | ????????????????????????# #?????????????????? | | ????????????????????????# #?????????????????? | | ?????????????????????#### #?????????????????? | | ?????????????????#???# ## #?????????????????? | | ?????????????????#=### a #?????????????????? | | ????????????????##%# ###?????????????????? | | ????????????????? #???????????????????? | | ??????????????????# ##??????????????????? | | ?????????????????## @d #??????????????????? | | ?????????????????# %d ##??????????????????? | | ?????????????????# #???????????????????? | | ?????????????????# ## #???????????????????? | | ????????????????## #?####???????????????????? | | ???????????????## #????????????????????????? | | ???????????????# #####????????????????????? | | ???????????????#! #????????????????????? | | ???????????????# ### ??????????????? | | ???????????????# #???? ?????????????? | | ???????????????# ##???????#####????????????? | | ??????????????## #####?????????????????????? | | ?????????###### ]< #?????????????????????? | | ?????????# #### #?????????????????????? | | ?????????## ! #??# #?????????????????????? | | ??????????# #### ##??# #?????????????????????? | | ??????????#??######### #?????????????????????? | | ?????????????# ##????????????????????? | | ?????????????# ###??????????????????? | | ?????????????# ###### ##?????????????????? | | ?############# #????## #?????????????????? | | ?# ##% #?????# %=#?????????????????? | | ?# ## #?????## ##?????????????????? | | ?# """ """ ## #??????####??????????????????? | | ?# """ """ ## #????????????????????????????? | +----------------------------------------------------+ Best States ------------- Heat Dissipation 25 Energy Generation 10 Energy Capacity 125 Matter Stores 300 Matter Capacity 300 Sight Range 16 Terrain Scan Density 10 Evasion (%) 55 Recoil Reduction 2 Item Schematics ----------------- None Robot Schematics ------------------ None Fabricated ------------ Nothing Alien Tech Used ----------------- None Achievements -------------- None Challenges ------------ None Game ------ Seed FissionImprovedDevice Manual? 0 Play Time 00:11:51 Cumulative 27.5 hours Start 2025.01.18 @ 21:07:30 End 2025.01.18 @ 21:17:25 Sessions 1 Manual Loads 0 Difficulty Rogue Special Mode None Game No. 65 Rogue 65 Adventurer 0 Explorer 0 Win Type - Total 0 Types 0/0/0/0/0/0/0/0/0 Lore% 35 Gallery% 33 Achievement% 32 Wizard Run 0 Options --------- Layout 1 ASCII 0 Keyboard 0 Movement Mouse Keybinds 0 Fullscreen 1 Font 24/Smallcaps Map View 50x35 Zoom Use 4% Tactical HUD 1 Map Filters NONE Filters NONE Steam 1 RUN: 795b5e43-e73a-4193-a244-a873674dd3df